bitfinex/quotes_ETHUSD_20250711
["timestamp","ask_amount","ask_price","bid_price","bid_amount"]
[1752199587019,0.042,2958.9,2957.5,8.42239367]
[1752199587020,0.7945,2958.7,2957.5,8.42239367]
[1752199587180,0.433,2958.6,2957.6,5.268]
[1752199587381,0.433,2958.6,2957.7,10.0]
[1752199587577,0.55,2958.5,2957.5,0.5229]
[1752199587900,0.72775,2958.5,2957.9,10.0]
[1752199588084,0.433,2958.4,2957.9,10.0]
[1752199588280,0.433,2958.3,2957.8,7.89949367]
[1752199588622,0.433,2958.3,2957.9,10.0]
[1752199588785,0.042,2958.9,2958.3,10.0]
[1752199588985,0.042,2958.9,2958.7,10.0]
[1752199589378,0.475,2958.9,2958.7,10.0]
[1752199589776,0.475,2958.9,2958.2,5.267]
[1752199589777,0.433,2958.8,2958.3,15.267]
[1752199589980,0.433,2958.7,2958.0,0.5229]
[1752199590180,0.433,2958.7,2958.1,10.0]
[1752199591222,1.0072,2958.7,2958.1,10.0]
[1752199591606,0.433,2958.6,2958.1,10.0]
[1752199591923,0.433,2958.5,2958.1,10.0]
[1752199592237,0.042,2958.9,2958.4,7.89949367]
[1752199592399,0.042,2958.9,2958.2,0.5229]
[1752199592592,0.475,2958.9,2958.1,10.0]
[1752199592926,0.042,2958.9,2958.5,10.0]
[1752199593596,0.042,2958.9,2958.0,7.89949367]
[1752199593597,0.433,2958.8,2958.0,7.89949367]
[1752199593796,0.433,2958.8,2958.1,10.0]
[1752199594403,0.042,2958.9,2958.1,10.0]
[1752199594627,0.433,2958.8,2958.1,10.0]
[1752199595227,0.433,2958.8,2958.1,7.89949367]
[1752199595799,0.042,2958.9,2958.2,10.0]
[1752199596244,0.042,2958.9,2958.6,10.0]
[1752199596432,0.042,2958.9,2958.7,0.03379862]
[1752199596748,0.042,2958.9,2958.6,10.0]
[1752199596920,0.042,2958.9,2958.6,10.3115]
[1752199597240,0.042,2958.9,2958.7,0.03379862]
[1752199597558,0.042,2958.9,2958.8,0.3115]
[1752199598267,0.7816,2959.8,2958.8,10.8344]
[1752199598546,0.767,2961.2,2959.8,3.37852118]
[1752199598732,0.767,2961.2,2959.6,7.89949367]
[1752199598733,0.767,2961.2,2960.8,10.0]
[1752199598934,0.767,2961.2,2960.4,5.274]
[1752199599136,8.108,2961.6,2959.9,7.89949367]
[1752199599137,0.7948,2960.7,2959.9,7.89949367]
[1752199599444,0.433,2961.3,2960.5,10.0]
[1752199599656,8.108,2961.6,2960.8,7.89949367]
[1752199599942,0.7948,2961.7,2960.8,7.89949367]
[1752199599943,0.433,2961.5,2961.3,10.0]
[1752199600149,0.7948,2961.7,2960.9,10.0]
[1752199600313,0.7948,2961.7,2961.3,10.0]
[1752199600642,1.2148696,2963.3,2961.3,10.0]
[1752199600643,1.2148696,2963.3,2961.8,0.5229]
[1752199600843,1.76255131,2963.5,2963.4,3.92450226]
[1752199601078,1.76255131,2963.5,2963.4,3.77193732]
[1752199601213,1.76255131,2963.5,2963.4,18.44949367]
[1752199601412,1.76255131,2963.5,2963.4,10.25308743]
[1752199601652,1.76255131,2963.5,2963.4,10.0]
[1752199601653,2.37180644,2963.5,2963.4,10.0]
[1752199601851,11.21820094,2963.5,2962.2,7.89949367]
[1752199602154,11.21820094,2963.5,2960.8,12.15380876]
[1752199602155,0.433,2963.4,2962.7,10.0]
[1752199602315,1.88880644,2963.5,2962.8,0.30853244]
[1752199602518,1.71255131,2963.5,2963.4,7.89949367]
[1752199602828,1.71255131,2963.5,2963.4,15.94449441]
[1752199603025,1.71255131,2963.5,2963.4,10.30802472]
[1752199603236,2.14555131,2963.5,2962.6,5.94449441]
[1752199603437,0.21455513,2963.4,2962.7,10.30811658]
[1752199603649,0.55,2963.2,2962.8,0.30811658]
[1752199603838,0.433,2963.1,2962.9,0.30811658]
[1752199604133,0.433,2963.1,2960.8,8.106]
[1752199604134,0.433,2963.1,2962.2,10.0]
[1752199604332,1.71255131,2963.5,2962.7,10.0]
[1752199604822,1.71255131,2963.5,2962.6,10.0]
[1752199605223,0.433,2963.4,2962.6,10.0]
[1752199605437,0.433,2963.4,2961.6,0.55]
[1752199605438,0.55,2963.3,2961.6,5.94449441]
[1752199605624,3.37497374,2963.0,2961.6,11.51049441]
[1752199605831,3.92463585,2963.3,2961.6,11.51049441]
[1752199605832,1.3081,2962.8,2961.6,5.94449441]
[1752199606050,3.92542966,2962.6,2961.0,5.568]
[1752199606355,0.55,2962.4,2960.9,5.94449441]
[1752199606528,3.37598477,2962.1,2960.9,5.94449441]
[1752199606714,0.433,2962.0,2961.0,10.0]
[1752199606919,0.8251,2961.8,2960.4,5.94449441]
[1752199607116,3.37667692,2961.5,2960.4,5.94449441]
[1752199607352,0.433,2961.4,2960.4,5.94449441]
[1752199608725,0.433,2961.4,2960.5,10.0]
[1752199608931,0.433,2961.4,2960.1,5.608]
[1752199609127,0.55,2961.3,2960.1,0.04]
[1752199609322,0.43598804,2961.2,2960.1,0.04]
[1752199609526,0.86898804,2961.2,2960.1,0.04]
[1752199610440,0.86898804,2961.2,2960.1,10.04]
[1752199611021,5.569,2961.7,2960.2,0.0337815]
[1752199611022,0.4574,2961.5,2960.2,0.0337815]
[1752199611230,0.55,2961.4,2960.2,0.0337815]
[1752199611556,3.92681855,2961.4,2960.2,0.0337815]
[1752199611743,0.4574,2961.5,2960.2,0.0337815]
[1752199611744,5.552,2961.3,2960.2,0.0337815]
[1752199612459,6.0094,2961.3,2960.1,10.04]
[1752199612637,6.0094,2961.3,2960.2,0.0337815]
[1752199613140,0.4574,2961.3,2960.2,0.0337815]
[1752199613340,5.547,2961.2,2960.1,10.04]
[1752199614158,5.547,2961.2,2960.2,0.0337815]
[1752199614361,0.4574,2961.6,2960.5,5.94449441]
[1752199614533,6.0004,2961.6,2960.6,0.03377693]
[1752199614733,6.0004,2961.6,2960.6,10.03377693]
[1752199615055,1.2825,2961.8,2960.6,10.0]
[1752199615269,5.54,2961.7,2960.6,10.0]
[1752199615762,1.2825,2961.8,2961.1,10.0]
[1752199615961,6.8195,2961.8,2961.2,0.03377009]
[1752199616124,6.8195,2961.8,2961.1,10.0]
[1752199616759,1.2825,2961.8,2961.1,10.0]
[1752199617068,6.8195,2961.8,2961.1,10.0]
[1752199617238,7.50145,2961.8,2960.6,10.0]
[1752199617569,7.50145,2961.8,2960.7,0.03377579]
[1752199617776,6.8195,2961.8,2960.7,0.03377579]
[1752199618236,1.2825,2961.8,2960.7,0.03377579]
[1752199618440,5.531,2961.7,2961.1,10.0]
[1752199618625,5.481,2961.7,2961.1,10.0]
[1752199621949,5.481,2961.7,2961.2,0.03377009]
[1752199622166,5.9384,2961.7,2960.8,0.03377465]
[1752199622531,5.9384,2961.7,2960.7,10.0]
[1752199622869,6.61475,2961.7,2960.7,10.0]
[1752199623163,1.13375,2961.7,2960.7,10.0]
[1752199623365,5.515,2961.6,2960.7,10.0]
[1752199623875,5.515,2961.6,2960.8,0.03377465]
[1752199624778,1.2825,2961.8,2960.7,10.0]
[1752199624962,5.509,2961.7,2961.2,10.0]
[1752199625134,5.9664,2961.7,2961.2,10.0]
[1752199625769,5.509,2961.7,2961.2,10.0]
[1752199625948,0.4574,2961.6,2961.2,10.0]
[1752199626262,0.4574,2961.5,2961.2,10.0]
[1752199626456,0.4574,2961.4,2961.2,10.0]
[1752199627041,5.509,2961.7,2961.2,10.0]
[1752199627042,5.9664,2961.7,2961.2,10.0]
[1752199627286,0.4574,2961.6,2961.2,10.0]
[1752199627575,0.4574,2961.5,2961.2,10.0]
[1752199627982,0.4574,2961.4,2961.2,10.0]
[1752199629046,0.55,2962.0,2961.2,10.0]
[1752199629270,5.9524,2961.9,2961.2,10.0]
[1752199629547,5.495,2961.9,2961.2,10.0]
[1752199629750,0.4574,2961.8,2961.2,10.0]
[1752199630157,5.9504,2961.8,2961.2,10.0]
[1752199630355,0.4574,2961.7,2960.7,7.87404902]
[1752199630554,0.7855,2961.6,2960.7,10.0]
[1752199630767,0.4574,2961.5,2960.6,10.0]
[1752199631139,0.4574,2961.5,2960.6,12.032]
[1752199631469,0.4574,2961.5,2960.6,10.0]
[1752199631869,0.7855,2961.6,2961.4,10.0]
[1752199632180,1.71455131,2963.5,2961.5,0.03376667]
[1752199632181,0.7636,2962.0,2961.5,0.03376667]
[1752199632363,5.492,2961.9,2961.5,0.03376667]
[1752199632539,5.9494,2961.9,2961.5,0.03376667]
[1752199632741,0.4574,2961.8,2961.5,0.03376667]
[1752199634190,0.4574,2961.8,2961.6,0.03376553]
[1752199634362,5.488,2961.9,2961.6,0.03376553]
[1752199634748,5.9454,2961.9,2961.6,0.03376553]
[1752199635272,5.9454,2961.9,2961.5,0.03376667]
[1752199635596,0.4574,2961.8,2961.5,0.03376667]
[1752199635945,0.4574,2961.8,2960.9,2.95931039]
[1752199635946,1.3396,2961.6,2960.9,2.95931039]
[1752199636190,0.4574,2961.5,2960.8,2.95931039]
[1752199636370,0.55,2961.3,2960.8,2.95931039]
[1752199636579,0.55,2960.9,2960.8,2.95931039]
[1752199636779,0.55,2960.9,2960.6,2.95931039]
[1752199636780,6.4904,2960.9,2960.6,2.95931039]
[1752199636979,5.9474,2960.8,2960.4,2.96031039]
[1752199637183,5.9474,2960.8,2960.5,2.95931039]
[1752199637364,0.4574,2960.7,2960.4,0.001]
[1752199637768,0.4574,2960.6,2960.4,0.001]
[1752199638179,5.49,2960.8,2960.4,0.001]
[1752199638180,0.4574,2960.5,2960.4,0.001]
[1752199640996,1.8277,2960.5,2960.4,0.001]
[1752199641166,2.01047,2960.5,2960.4,0.001]
[1752199641371,1.2777,2960.5,2960.4,0.001]
[1752199641702,6.7587,2960.5,2960.4,0.001]
[1752199648274,7.3087,2960.5,2960.4,0.001]
[1752199651813,1.8277,2960.5,2960.4,0.001]
[1752199651986,7.2797,2960.5,2960.4,0.001]
[1752199652188,1.8277,2960.5,2960.4,0.001]
[1752199652421,7.2777,2960.5,2960.4,0.001]
[1752199653216,1.8277,2960.5,2960.4,0.001]
[1752199653415,7.2777,2960.5,2960.4,0.001]
[1752199653819,0.4677,2960.9,2960.4,0.001]
[1752199653986,0.4677,2960.7,2960.4,0.001]
[1752199654495,0.4677,2960.6,2960.4,0.001]
[1752199654696,5.445,2960.5,2960.4,0.001]
[1752199655588,5.9127,2960.5,2960.4,0.001]
[1752199656014,5.44,2960.5,2960.4,0.001]
[1752199656216,0.4677,2960.8,2960.4,0.001]
[1752199656417,5.439,2960.7,2960.6,10.0]
[1752199656809,0.002,2961.7,2960.8,10.0]
[1752199656996,0.002,2961.7,2961.6,10.0]
[1752199657201,0.002,2961.7,2960.7,2.95931039]
[1752199657202,5.451,2961.7,2961.0,7.87404902]
[1752199657400,5.451,2961.7,2960.8,10.0]
[1752199657401,0.4677,2961.6,2960.8,10.0]
[1752199657616,0.7719,2961.5,2960.7,10.0]
[1752199657923,5.9177,2961.4,2960.7,10.0]
[1752199659810,1.0177,2961.3,2960.7,10.0]
[1752199660900,0.4677,2961.2,2960.7,10.0]
[1752199661110,1.27396,2961.3,2960.7,10.0]
[1752199661316,0.4677,2961.1,2960.7,10.0]
[1752199661510,5.9067,2961.0,2960.4,0.001]
[1752199661717,5.9067,2961.0,2960.5,10.0]
[1752199661913,0.4677,2960.9,2960.5,10.0]
[1752199662924,5.438,2960.8,2960.5,10.0]
[1752199664324,0.4677,2960.7,2960.4,0.001]
[1752199664712,0.4677,2960.6,2960.4,0.001]
[1752199665124,0.7616,2960.7,2960.4,0.001]
[1752199665308,0.4677,2960.5,2960.4,0.001]
[1752199665696,1.0177,2960.5,2960.4,0.001]
[1752199665896,1.19563,2960.5,2960.4,0.001]
[1752199667331,1.0177,2960.5,2960.4,0.001]
[1752199669623,5.5630078,2960.5,2960.4,0.001]
[1752199669947,5.5630078,2960.5,2960.1,0.04]
[1752199669948,1.3085,2960.2,2960.1,0.04]
[1752199670148,6.7255,2960.2,2960.1,0.04]
[1752199670316,10.55015012,2960.2,2960.1,0.04]
[1752199670521,4.68727943,2959.7,2959.1,0.04]
[1752199670723,0.55,2959.5,2959.1,0.04]
[1752199671248,0.55,2959.3,2959.1,0.04]
[1752199671757,0.4465,2959.3,2959.1,0.04]
[1752199671927,11.8425,2959.3,2959.1,0.04]
[1752199673431,13.02675,2959.3,2959.1,0.04]
[1752199673863,17.2078275,2959.3,2959.1,0.04]
[1752199674370,3.9292917,2959.2,2959.1,0.04]
[1752199674670,1.3578,2958.7,2958.1,0.04]
[1752199674873,11.389,2958.6,2958.1,0.04]
[1752199675033,13.05518,2958.6,2958.1,0.04]
[1752199675233,12.60868,2958.6,2958.1,0.04]
[1752199675462,13.05518,2958.6,2958.1,0.04]
[1752199681065,2.21618,2958.6,2958.1,0.04]
[1752199681290,8.104,2959.0,2958.1,0.04]
[1752199681291,8.104,2959.0,2958.3,10.0]
[1752199681501,5.406,2958.9,2958.7,10.0]
[1752199681796,5.406,2958.8,2958.5,7.87504902]
[1752199681966,5.406,2958.8,2958.5,10.001]
[1752199682519,5.406,2958.7,2958.5,10.0811]
[1752199682666,8.104,2959.0,2958.5,10.0811]
[1752199682667,5.407,2958.6,2958.5,10.001]
[1752199682861,5.407,2958.6,2958.5,0.001]
[1752199683199,5.407,2958.6,2958.5,10.001]
[1752199686792,5.4,2958.6,2958.5,0.001]
[1752199688140,6.9365,2958.6,2958.5,0.001]
[1752199691693,0.409,2958.8,2958.5,10.001]
[1752199691925,5.392,2958.7,2958.5,10.001]
[1752199693532,5.389,2958.6,2958.5,10.001]
[1752199694624,8.104,2959.0,2958.5,10.001]
[1752199694803,5.386,2958.9,2958.5,10.001]
[1752199695209,5.8325,2958.9,2958.5,10.001]
[1752199696311,0.4465,2958.9,2958.5,10.001]
[1752199696498,5.382,2958.8,2958.5,10.001]
[1752199697319,8.104,2959.0,2958.5,10.001]
[1752199697540,5.378,2958.9,2958.5,10.001]
[1752199698832,0.4485,2959.1,2958.5,10.001]
[1752199699019,5.8225,2959.0,2958.5,10.001]
[1752199699206,0.4465,2958.9,2958.5,10.001]
[1752199699409,5.372,2958.8,2958.5,10.001]
[1752199700805,5.8198,2958.8,2958.5,10.001]
[1752199701935,0.4478,2958.7,2958.5,10.001]
[1752199703426,5.372,2958.8,2958.5,10.001]
[1752199703739,0.4478,2958.6,2958.5,0.001]
[1752199704855,5.372,2958.8,2958.5,0.001]
[1752199705411,0.4478,2958.7,2958.5,0.001]
[1752199705821,5.357,2958.6,2958.5,10.001]
[1752199706040,5.356,2958.6,2958.5,10.001]
[1752199706736,0.9978,2958.9,2958.5,10.001]
[1752199706938,5.8028,2958.8,2958.5,10.001]
[1752199707637,5.355,2958.8,2958.5,10.001]
[1752199708040,5.353,2958.7,2958.5,10.001]
[1752199709931,0.4478,2958.6,2958.5,10.001]
[1752199710126,1.02788,2958.6,2958.5,0.001]
[1752199710324,1.57788,2958.6,2958.5,0.001]
[1752199712768,2.36198,2958.6,2958.5,0.001]
[1752199715370,2.77098,2958.6,2958.5,0.001]
[1752199715565,6.15095701,2958.6,2958.5,0.001]
[1752199716994,4.73563404,2958.2,2958.1,0.04]
[1752199717197,10.88122875,2958.2,2958.1,0.04]
[1752199717499,11.73802875,2958.2,2958.1,0.04]
[1752199718405,0.55,2957.6,2957.3,0.001]
[1752199718562,0.55,2957.4,2957.3,0.001]
[1752199718769,5.883,2957.4,2957.3,0.001]
[1752199719005,7.04052,2957.4,2957.3,0.001]
[1752199719678,5.7798,2957.4,2957.3,0.001]
[1752199722293,0.4478,2957.4,2957.3,0.001]
[1752199722497,5.7748,2957.4,2957.3,0.001]
[1752199722967,0.409,2957.5,2957.3,0.001]
[1752199723305,8.108,2958.3,2957.3,0.001]
[1752199723306,11.0998,2957.4,2957.3,0.001]
[1752199723463,0.8222,2958.0,2957.3,10.001]
[1752199723661,5.339,2957.9,2957.4,0.0432]
[1752199724067,5.34,2957.8,2957.4,0.0432]
[1752199726503,5.335,2957.7,2957.4,0.0432]
[1752199726802,5.335,2957.6,2957.4,0.0432]
[1752199726969,5.335,2957.6,2957.3,10.001]
[1752199726970,0.4478,2957.5,2957.3,0.001]
[1752199727414,5.335,2957.6,2957.3,0.001]
[1752199727706,5.335,2957.6,2957.5,10.0]
[1752199728390,5.335,2957.6,2957.3,10.001]
[1752199728604,3.93134848,2957.4,2957.3,0.001]
[1752199728903,0.959,2957.4,2957.3,0.001]
[1752199729090,9.67534848,2957.4,2957.3,0.001]
[1752199729406,6.7418,2957.4,2957.3,0.001]
[1752199730218,7.5675,2957.4,2957.3,0.001]
[1752199730383,8.32425,2957.4,2957.3,0.001]
[1752199731614,11.70559848,2957.4,2957.3,0.001]
[1752199734192,8.32425,2957.4,2957.3,0.001]
[1752199734509,11.70559848,2957.4,2957.3,0.001]
[1752199738328,11.70559848,2957.4,2956.3,0.001]
[1752199738329,1.3476,2956.4,2956.3,0.001]
[1752199738611,10.05509222,2956.4,2956.3,0.001]
[1752199738777,10.51029222,2956.4,2956.3,0.001]
[1752199740909,20.51029222,2956.4,2956.3,0.001]
[1752199741488,4.68672106,2956.2,2956.1,0.04]
[1752199741795,11.39766239,2956.2,2956.1,0.04]
[1752199741987,11.85286239,2956.2,2956.1,0.04]
[1752199742823,2.59414133,2956.2,2956.1,0.04]
[1752199743008,6.081,2956.2,2956.1,0.04]
[1752199743215,6.5362,2956.2,2956.1,0.04]
[1752199743593,5.327,2956.2,2956.1,0.04]
[1752199744338,5.7822,2956.2,2956.1,0.04]
[1752199744642,6.3322,2956.2,2956.1,0.04]
[1752199744785,7.30368996,2956.2,2956.1,0.04]
[1752199745215,10.68641102,2956.2,2956.1,0.04]
[1752199745421,7.30368996,2956.2,2956.1,0.04]
[1752199745623,10.68641102,2956.2,2956.1,0.04]
[1752199745832,7.30368996,2956.2,2956.1,0.04]
[1752199748635,10.68641102,2956.2,2956.1,0.04]
[1752199748824,11.45171102,2956.2,2956.1,0.04]
[1752199753842,0.55,2955.9,2955.1,0.04]
[1752199754064,0.55,2955.7,2955.1,0.04]
[1752199754231,5.327,2955.6,2955.2,0.0842]
[1752199755330,5.327,2955.5,2955.2,0.0842]
[1752199755843,0.55,2955.4,2955.2,0.0842]
[1752199756067,5.877,2955.3,2955.2,0.0842]
[1752199757762,0.318,2955.6,2955.2,0.0842]
[1752199758059,5.327,2955.5,2955.3,10.0]
[1752199758251,5.327,2955.5,2955.2,0.0842]
[1752199758563,0.55,2955.4,2955.2,0.0842]
[1752199758764,5.327,2955.3,2955.2,0.0842]
[1752199760261,5.327,2955.3,2955.1,0.04]
[1752199760859,0.327,2955.3,2955.1,0.04]
[1752199761951,0.327,2955.3,2955.1,7.93887869]
[1752199762135,0.327,2955.3,2955.2,10.0]
[1752199764129,0.318,2955.6,2955.2,10.0]
[1752199764467,5.327,2955.5,2955.2,10.0801]
[1752199764962,5.327,2955.5,2955.2,10.0]
[1752199765468,5.327,2955.5,2955.4,0.0842]
[1752199768265,5.7846,2955.5,2955.2,10.0]
[1752199768572,5.7846,2955.5,2955.1,0.1242]
[1752199769370,0.4576,2955.4,2955.1,0.04]
[1752199769555,1.0076,2955.4,2955.1,0.04]
[1752199769757,0.4576,2955.3,2955.1,0.04]
[1752199769972,5.326,2955.2,2955.1,0.04]
[1752199770174,5.7836,2955.2,2955.1,0.04]
[1752199771182,6.3336,2955.2,2955.1,0.04]
[1752199771671,6.6516,2955.2,2955.1,0.04]
[1752199774158,6.194,2955.2,2955.1,0.04]
[1752199774571,6.6516,2955.2,2955.1,0.04]
[1752199775319,8.09916,2955.2,2955.1,0.04]
[1752199776885,11.48302572,2955.2,2955.1,0.04]
[1752199777206,8.09916,2955.2,2955.1,0.04]
[1752199778610,11.48302572,2955.2,2955.1,0.04]
[1752199778776,8.09916,2955.2,2955.1,0.04]
[1752199778977,11.48302572,2955.2,2955.1,0.04]
[1752199779871,8.09816,2955.2,2955.1,0.04]
[1752199780265,11.48202572,2955.2,2955.1,0.04]
[1752199781672,1.3618,2954.4,2954.2,0.10114174]
[1752199781864,5.875,2954.3,2954.2,0.10114174]
[1752199782069,9.71749659,2954.3,2954.2,0.10114174]
[1752199782266,6.3326,2954.3,2954.2,0.10114174]
[1752199782501,0.55,2954.2,2954.1,0.04]
[1752199782666,5.325,2954.3,2954.1,0.04]
[1752199783217,5.325,2954.2,2954.1,0.04]
[1752199783381,6.3326,2954.2,2954.1,0.04]
[1752199783584,6.98966,2954.2,2954.1,0.04]
[1752199784394,11.41777117,2954.2,2954.1,0.04]
[1752199788829,0.238,2954.2,2954.1,0.04]
[1752199788988,5.563,2954.2,2954.1,0.04]
[1752199789497,8.356,2954.5,2954.1,0.1242]
[1752199789708,8.356,2954.5,2954.1,0.2043]
[1752199789709,5.325,2954.4,2954.1,0.2043]
[1752199789905,5.325,2954.4,2954.1,0.1242]
[1752199790119,5.325,2954.4,2954.1,0.04]
[1752199791915,5.325,2954.4,2954.2,0.0842]
[1752199792612,5.7938,2954.4,2954.1,0.04]
[1752199792816,6.6931,2954.4,2954.1,0.04]
[1752199793137,0.55,2954.2,2954.1,0.04]
[1752199793333,5.874,2954.2,2954.1,0.04]
[1752199793538,6.3428,2954.2,2954.1,0.04]
[1752199793706,7.19541,2954.2,2954.1,0.04]
[1752199795251,7.43341,2954.2,2954.1,0.04]
[1752199800422,10.81842117,2954.2,2954.1,0.04]
[1752199800952,7.43341,2954.2,2954.1,0.04]
[1752199801314,10.81842117,2954.2,2954.1,0.04]
[1752199801559,7.43341,2954.2,2954.1,0.04]
[1752199803342,11.64232117,2954.2,2954.1,0.04]
[1752199813060,4.13312575,2954.1,2954.0,0.001]
[1752199813269,6.10066086,2954.1,2954.0,0.001]
[1752199813773,6.87196086,2954.1,2954.0,0.001]
[1752199815252,12.19296086,2954.1,2954.0,0.001]
[1752199820265,12.19296086,2954.1,2953.9,0.001]
[1752199820266,4.89614035,2954.0,2953.9,0.001]
[1752199820466,5.32744035,2954.0,2953.9,0.001]
[1752199820689,6.96593147,2954.0,2953.9,0.001]
[1752199821198,16.96593147,2954.0,2953.9,0.001]
[1752199821697,20.52493147,2954.0,2953.9,0.001]
[1752199821863,16.96593147,2954.0,2953.9,0.001]
[1752199823776,17.21445978,2954.0,2953.9,0.001]
[1752199827772,0.55,2953.8,2953.0,0.001]
[1752199827972,0.55,2953.4,2953.0,0.001]
[1752199828202,5.318,2953.3,2953.0,0.001]
[1752199829116,0.156,2953.2,2953.0,0.001]
[1752199833617,6.023,2953.2,2953.0,0.001]
[1752199835418,9.40915738,2953.2,2953.0,0.001]
[1752199835623,11.93907707,2953.2,2953.0,0.001]
[1752199835819,11.11997707,2953.2,2953.0,0.001]
[1752199840394,11.94547707,2953.2,2953.0,0.001]
[1752199841839,21.94547707,2953.2,2953.0,0.001]
[1752199843943,11.94547707,2953.2,2953.0,0.001]
[1752199844239,8.85615738,2953.2,2953.0,0.001]
[1752199844426,6.02,2953.2,2953.0,0.001]
[1752199844634,9.40615738,2953.2,2953.0,0.001]
[1752199844824,6.02,2953.2,2953.0,0.001]
[1752199845741,0.706,2953.2,2953.0,5.28202132]
[1752199845907,6.019,2953.2,2953.0,5.28202132]
[1752199846306,0.156,2953.2,2953.1,0.1201]
[1752199846554,5.469,2953.2,2953.1,0.1201]
[1752199846756,5.469,2953.2,2953.1,0.04]
[1752199849453,5.469,2953.2,2953.1,0.1201]
[1752199849632,0.156,2953.2,2953.1,0.1201]
[1752199849835,5.468,2953.2,2953.1,0.2043]
[1752199850726,0.156,2953.2,2953.1,0.2043]
[1752199851050,5.468,2953.2,2953.1,0.2043]
[1752199851634,0.156,2953.2,2953.1,10.1242]
[1752199851949,8.124,2953.7,2953.2,0.0842]
[1752199852158,5.311,2953.6,2953.3,0.0801]
[1752199852317,5.311,2953.6,2953.2,0.0842]
[1752199852525,5.311,2953.6,2953.4,0.0801]
[1752199852757,8.124,2953.7,2953.5,0.0801]
[1752199852940,0.002,2953.9,2953.2,0.0801]
[1752199853141,0.002,2953.9,2953.1,0.04]
[1752199853142,5.311,2953.8,2953.1,0.04]
[1752199853330,5.311,2953.8,2953.7,5.28102132]
[1752199853523,5.311,2953.8,2953.7,5.36522132]
[1752199854654,0.002,2953.9,2953.7,5.44532132]
[1752199854820,0.002,2953.9,2953.8,0.0842]
[1752199855026,0.002,2953.9,2953.8,10.1643]
[1752199855358,0.002,2953.9,2953.8,5.44532132]
[1752199856954,0.002,2953.9,2953.8,5.36522132]
[1752199857457,0.002,2953.9,2953.8,5.44532132]
[1752199858358,0.002,2953.9,2953.8,15.44532132]
[1752199861740,0.002,2953.9,2953.8,15.36522132]
[1752199861941,0.002,2953.9,2953.8,15.44532132]
[1752199862540,0.55,2954.8,2953.9,10.0842]
[1752199862746,8.124,2954.9,2954.7,5.36522132]
[1752199862963,5.306,2954.8,2954.7,5.36522132]
[1752199863673,0.1688,2954.7,2954.3,10.0]
[1752199863874,0.1688,2954.7,2953.9,0.0842]
[1752199863875,0.4716,2954.6,2953.9,0.0842]
[1752199864268,0.4716,2954.6,2953.8,10.0]
[1752199864464,0.55,2954.4,2953.8,10.0]
[1752199864666,0.4716,2954.3,2953.8,10.0]
[1752199864849,0.4716,2954.2,2953.8,10.0]
[1752199865050,5.305,2954.1,2953.8,10.0]
[1752199865646,5.305,2954.1,2954.0,5.28102132]
[1752199865847,5.305,2954.1,2954.0,15.28102132]
[1752199867001,0.55,2954.7,2954.1,10.0]
[1752199867204,0.55,2954.7,2954.3,5.28102132]
[1752199867205,5.304,2954.6,2954.3,5.28102132]
[1752199867702,5.4728,2954.5,2954.3,5.28102132]
[1752199867869,0.1688,2954.5,2954.3,5.28102132]
[1752199868062,0.1688,2954.5,2954.3,5.36112132]
[1752199868306,5.304,2954.5,2954.4,0.0801]
[1752199869165,5.304,2954.5,2954.4,10.0]
[1752199870480,0.1688,2954.7,2954.4,10.0]
[1752199870690,5.303,2954.6,2954.4,0.0801]
[1752199870863,5.303,2954.6,2954.2,0.0842]
[1752199871506,5.303,2954.6,2954.2,0.1643]
[1752199871867,5.303,2954.6,2954.2,10.1643]
[1752199872270,0.4716,2954.5,2953.8,0.0842]
[1752199872466,0.706,2954.4,2953.4,0.0842]
[1752199872692,1.2987,2954.3,2953.4,10.0842]
[1752199872889,5.302,2954.2,2953.4,10.0842]
[1752199873091,5.7736,2954.2,2953.4,10.0842]
[1752199873270,1.3337,2953.8,2953.1,0.1242]
[1752199873467,0.55,2953.6,2953.1,0.04]
[1752199873909,5.302,2953.7,2953.1,0.04]
[1752199874680,0.55,2954.0,2953.3,7.99603405]
[1752199874983,5.302,2953.9,2953.3,7.99603405]
[1752199876000,5.302,2953.9,2953.3,0.0842]
[1752199876184,6.03006,2953.9,2953.3,10.0842]
[1752199877312,5.302,2953.9,2953.3,10.0842]
[1752199879604,0.4716,2954.0,2953.3,10.0842]
[1752199879777,0.801,2954.1,2953.3,10.0842]
[1752199879778,5.301,2953.8,2953.3,10.0842]
[1752199881409,5.3,2953.7,2953.3,10.0842]
[1752199882119,5.3,2953.7,2953.4,0.11395928]
[1752199883015,5.3,2953.7,2953.4,0.0801]
[1752199883206,5.3,2953.7,2953.3,10.0842]